Department Family,Entity,Date,Expense Type,Expense Area,Supplier,SME,Transaction Number,Amount,Description,Expenditure Type
HM Land Registry,HM Land Registry,07/04/2017,Professional Services,Dir: Finance,Ashfords Solicitors LLP,Large,1175474,"26,528.40",Professional Services,Administration
HM Land Registry,HM Land Registry,10/04/2017,Stationery National Contracts,Birkenhead Office,Banner Group Limited,Large,1178608,"1,581.75",Stationery,Administration
HM Land Registry,HM Land Registry,10/04/2017,Stationery National Contracts,Central Facilities Management Team,Banner Group Limited,Large,1178608,237.83,Stationery,Administration
HM Land Registry,HM Land Registry,10/04/2017,Stationery National Contracts,Central Operations Group,Banner Group Limited,Large,1178608,6.06,Stationery,Administration
HM Land Registry,HM Land Registry,10/04/2017,Stationery National Contracts,Chief Executives Office,Banner Group Limited,Large,1178608,93.55,Stationery,Administration
HM Land Registry,HM Land Registry,10/04/2017,Stationery National Contracts,Coventry Office,Banner Group Limited,Large,1178608,255.37,Stationery,Administration
HM Land Registry,HM Land Registry,10/04/2017,Stationery National Contracts,Croydon Office,Banner Group Limited,Large,1178608,"1,010.11",Stationery,Administration
HM Land Registry,HM Land Registry,10/04/2017,Stationery National Contracts,Director of Information Systems,Banner Group Limited,Large,1178608,398.48,Stationery,Administration
HM Land Registry,HM Land Registry,10/04/2017,Stationery National Contracts,Durham Office,Banner Group Limited,Large,1178608,"1,982.58",Stationery,Administration
HM Land Registry,HM Land Registry,10/04/2017,Stationery National Contracts,Finance Group,Banner Group Limited,Large,1178608,56.54,Stationery,Administration
HM Land Registry,HM Land Registry,10/04/2017,Stationery National Contracts,Fylde Office,Banner Group Limited,Large,1178608,"1,036.08",Stationery,Administration
HM Land Registry,HM Land Registry,10/04/2017,Stationery National Contracts,Gloucester Office,Banner Group Limited,Large,1178608,"1,454.49",Stationery,Administration
HM Land Registry,HM Land Registry,10/04/2017,Stationery National Contracts,Hull Office,Banner Group Limited,Large,1178608,"9,831.68",Stationery,Administration
HM Land Registry,HM Land Registry,10/04/2017,Stationery National Contracts,IS Service Delivery,Banner Group Limited,Large,1178608,"9,009.17",Stationery,Administration
HM Land Registry,HM Land Registry,10/04/2017,Stationery National Contracts,Leicester Office,Banner Group Limited,Large,1178608,438.40,Stationery,Administration
HM Land Registry,HM Land Registry,10/04/2017,Stationery National Contracts,Nottingham Office,Banner Group Limited,Large,1178608,667.87,Stationery,Administration
HM Land Registry,HM Land Registry,10/04/2017,Stationery National Contracts,Peterborough Office,Banner Group Limited,Large,1178608,"1,079.01",Stationery,Administration
HM Land Registry,HM Land Registry,10/04/2017,Stationery National Contracts,Plymouth Office,Banner Group Limited,Large,1178608,984.16,Stationery,Administration
HM Land Registry,HM Land Registry,10/04/2017,Stationery National Contracts,Telford Office,Banner Group Limited,Large,1178608,783.73,Stationery,Administration
HM Land Registry,HM Land Registry,10/04/2017,Stationery National Contracts,Wales Office,Banner Group Limited,Large,1178608,"5,332.46",Stationery,Administration
HM Land Registry,HM Land Registry,10/04/2017,Stationery National Contracts,Weymouth Office,Banner Group Limited,Large,1178608,486.04,Stationery,Administration
HM Land Registry,HM Land Registry,10/04/2017,Stationery National Contracts,Organisation & Employee Development,Banner Group Limited,Large,1178608,6.06,Stationery,Administration
HM Land Registry,HM Land Registry,04/04/2017,Other External Training,Organisation & Employee Development,Capita Business Services Ltd,SME,1177823,"46,000.00",Other External Training,Administration
HM Land Registry,HM Land Registry,05/04/2017,Computer Equipment Maintenance,IS Service Delivery,CGI IT UK Limited,Large,1178091,"61,500.00",Computer Equipment Maintenance,Administration
HM Land Registry,HM Land Registry,26/04/2017,Rates Payable,Wales Office,City & County of Swansea,Large,1176720,"22,580.00",Rates Payable,Administration
HM Land Registry,HM Land Registry,20/04/2017,Service Charges,Central Facilities Management Team,Commercial Estates Group Ltd,SME,1175267,"23,338.41",Service Charges,Administration
HM Land Registry,HM Land Registry,07/04/2017,Computer Equipment Maintenance,IS Service Delivery,Compuware UK Ltd,Large,1178305,"176,700.00",Computer Equipment Maintenance,Administration
HM Land Registry,HM Land Registry,07/04/2017,Computer Equipment Non HP Licences,IS Service Delivery,Compuware UK Ltd,Large,1178305,"12,000.00",Computer Equipment Non HP Licences,Administration
HM Land Registry,HM Land Registry,26/04/2017,Rates Payable,Durham Office,Durham County Council,Large,1176070,"28,213.00",Rates Payable,Administration
HM Land Registry,HM Land Registry,20/04/2017,Computer Equipment Maintenance,IS Service Delivery,Envitia Ltd,SME,1178090,"304,150.00",Computer Equipment Maintenance,Administration
HM Land Registry,HM Land Registry,28/04/2017,Computer Equipment Maintenance,IS Service Delivery,Experian Ltd,Large,1179829,"58,050.00",Computer Equipment Maintenance,Administration
HM Land Registry,HM Land Registry,26/04/2017,Rates Payable,Fylde Office,Fylde Borough Council,Large,1175982,"17,124.00",Rates Payable,Administration
HM Land Registry,HM Land Registry,26/04/2017,Rates Payable,Gloucester Office,Gloucester City Council,Large,1175823,"28,980.00",Rates Payable,Administration
HM Land Registry,HM Land Registry,24/04/2017,Computer Equipment Maintenance,IS Service Delivery,IBM United Kingdom Ltd,Large,1179350,"107,611.48",Computer Equipment Maintenance,Administration
HM Land Registry,HM Land Registry,25/04/2017,Computer Equipment Maintenance,IS Service Delivery,IBM United Kingdom Ltd,Large,1179652,"1,994,309.76",Computer Equipment Maintenance,Administration
HM Land Registry,HM Land Registry,25/04/2017,Computer Equipment Hire,IS Service Delivery,IBM United Kingdom Ltd,Large,1179652,"4,430,527.49",Computer Equipment Hire,Administration
HM Land Registry,HM Land Registry,19/04/2017,Professional Services,Program: Local Land Charges,Kainos Software Ltd,Large,1179165,"354,258.26",Professional Services,Administration
HM Land Registry,HM Land Registry,10/04/2017,Rates Payable,Hull Office,Kingston Upon Hull City Council,Large,1176171,"12,874.37",Rates Payable,Administration
HM Land Registry,HM Land Registry,20/04/2017,Professional Services,Strategy Team,KPMG LLP,SME,1175926,"51,192.00",Professional Services,Administration
HM Land Registry,HM Land Registry,05/04/2017,Consultancy Non-IT Advice Only,Finance Group,Lane Clark & Peacock LLP,Large,1175501,"77,000.00",Consultancy Non-IT Advice Only,Administration
HM Land Registry,HM Land Registry,26/04/2017,Rates Payable,Leicester Office,Leicester City Council,Large,1176378,"22,034.00",Rates Payable,Administration
HM Land Registry,HM Land Registry,24/04/2017,Computer Equipment Maintenance,IS Service Delivery,Marval Software Ltd,Large,1179524,"62,434.00",Computer Equipment Maintenance,Administration
HM Land Registry,HM Land Registry,20/04/2017,Data Network Lines,IS Service Delivery,MLL Telecom Ltd,Large,1179166,"56,979.47",Data Network Lines,Administration
HM Land Registry,HM Land Registry,26/04/2017,Rates Payable,Nottingham Office,Nottingham City Council,Large,1176596,"26,585.00",Rates Payable,Administration
HM Land Registry,HM Land Registry,25/04/2017,Computer Equipment Maintenance,IS Service Delivery,Oracle Corporation (UK) Ltd,Large,1179242,"422,584.64",Computer Equipment Maintenance,Administration
HM Land Registry,HM Land Registry,26/04/2017,Rates Payable,Peterborough Office,Peterborough City Council,Large,1176069,"10,690.00",Rates Payable,Administration
HM Land Registry,HM Land Registry,26/04/2017,Rates Payable,Director of Information Systems,Plymouth City Council,Large,1176173,"36,385.00",Rates Payable,Administration
HM Land Registry,HM Land Registry,05/04/2017,Travel & Subsistence General Duty,Birkenhead Office,Redfern Travel Ltd,SME,1178098,319.00,Travel & Subsistence,Administration
HM Land Registry,HM Land Registry,05/04/2017,Travel & Subsistence General Duty,Business Development,Redfern Travel Ltd,SME,1178098,124.90,Travel & Subsistence,Administration
HM Land Registry,HM Land Registry,05/04/2017,Travel & Subsistence General Duty,Central Facilities Management Team,Redfern Travel Ltd,SME,1178098,539.80,Travel & Subsistence,Administration
HM Land Registry,HM Land Registry,05/04/2017,Travel & Subsistence General Duty,Central Operations Group,Redfern Travel Ltd,SME,1178098,"1,086.90",Travel & Subsistence,Administration
HM Land Registry,HM Land Registry,05/04/2017,Travel & Subsistence General Duty,Chief Executives Office,Redfern Travel Ltd,SME,1178098,348.40,Travel & Subsistence,Administration
HM Land Registry,HM Land Registry,05/04/2017,Travel & Subsistence General Duty,Commercial & Customer Strategy & Performance,Redfern Travel Ltd,SME,1178098,124.35,Travel & Subsistence,Administration
HM Land Registry,HM Land Registry,05/04/2017,Travel & Subsistence General Duty,Commercial Director,Redfern Travel Ltd,SME,1178098,163.30,Travel & Subsistence,Administration
HM Land Registry,HM Land Registry,05/04/2017,Travel & Subsistence General Duty,Corp Procurement,Redfern Travel Ltd,SME,1178098,"1,019.85",Travel & Subsistence,Administration
HM Land Registry,HM Land Registry,05/04/2017,Travel & Subsistence Dual Workplace,Corp Procurement,Redfern Travel Ltd,SME,1178098,154.40,Travel & Subsistence,Administration
HM Land Registry,HM Land Registry,05/04/2017,Travel & Subsistence General Duty,Corporate Assurance,Redfern Travel Ltd,SME,1178098,369.00,Travel & Subsistence,Administration
HM Land Registry,HM Land Registry,05/04/2017,Travel & Subsistence General Duty,Corporate Legal Services,Redfern Travel Ltd,SME,1178098,739.35,Travel & Subsistence,Administration
HM Land Registry,HM Land Registry,05/04/2017,Travel & Subsistence Dual Workplace,Corporate Legal Services,Redfern Travel Ltd,SME,1178098,-7.30,Travel & Subsistence,Administration
HM Land Registry,HM Land Registry,05/04/2017,Travel & Subsistence General Duty,Coventry Office,Redfern Travel Ltd,SME,1178098,20.83,Travel & Subsistence,Administration
HM Land Registry,HM Land Registry,05/04/2017,Travel & Subsistence General Duty,Croydon Office,Redfern Travel Ltd,SME,1178098,78.58,Travel & Subsistence,Administration
HM Land Registry,HM Land Registry,05/04/2017,Travel & Subsistence General Duty,Data Group,Redfern Travel Ltd,SME,1178098,"1,004.48",Travel & Subsistence,Administration
HM Land Registry,HM Land Registry,05/04/2017,Travel & Subsistence General Duty,Dir: (Statutory) Digital Services,Redfern Travel Ltd,SME,1178098,"1,528.63",Travel & Subsistence,Administration
HM Land Registry,HM Land Registry,05/04/2017,Travel & Subsistence General Duty,Dir: Operations,Redfern Travel Ltd,SME,1178098,104.55,Travel & Subsistence,Administration
HM Land Registry,HM Land Registry,05/04/2017,Travel & Subsistence General Duty,Director of Information Systems,Redfern Travel Ltd,SME,1178098,"1,570.44",Travel & Subsistence,Administration
HM Land Registry,HM Land Registry,05/04/2017,Travel & Subsistence General Duty,Director of Legal Services,Redfern Travel Ltd,SME,1178098,"1,186.36",Travel & Subsistence,Administration
HM Land Registry,HM Land Registry,05/04/2017,Travel & Subsistence General Duty,Director of Operations,Redfern Travel Ltd,SME,1178098,171.83,Travel & Subsistence,Administration
HM Land Registry,HM Land Registry,05/04/2017,Travel & Subsistence General Duty,Durham Office,Redfern Travel Ltd,SME,1178098,456.53,Travel & Subsistence,Administration
HM Land Registry,HM Land Registry,05/04/2017,Travel & Subsistence General Duty,Finance Director,Redfern Travel Ltd,SME,1178098,70.00,Travel & Subsistence,Administration
HM Land Registry,HM Land Registry,05/04/2017,Travel & Subsistence General Duty,Guarantee & Litigation,Redfern Travel Ltd,SME,1178098,242.40,Travel & Subsistence,Administration
HM Land Registry,HM Land Registry,05/04/2017,Travel & Subsistence General Duty,HR Group,Redfern Travel Ltd,SME,1178098,"4,450.53",Travel & Subsistence,Administration
HM Land Registry,HM Land Registry,05/04/2017,Travel & Subsistence General Duty,IS Service Delivery,Redfern Travel Ltd,SME,1178098,608.81,Travel & Subsistence,Administration
HM Land Registry,HM Land Registry,05/04/2017,Travel & Subsistence General Duty,Local Land Charges,Redfern Travel Ltd,SME,1178098,"4,285.32",Travel & Subsistence,Administration
HM Land Registry,HM Land Registry,05/04/2017,Travel & Subsistence General Duty,Local Lawyer Group,Redfern Travel Ltd,SME,1178098,592.70,Travel & Subsistence,Administration
HM Land Registry,HM Land Registry,05/04/2017,Travel & Subsistence General Duty,Nottingham Office,Redfern Travel Ltd,SME,1178098,266.00,Travel & Subsistence,Administration
HM Land Registry,HM Land Registry,05/04/2017,Travel & Subsistence General Duty,Peterborough Office,Redfern Travel Ltd,SME,1178098,45.20,Travel & Subsistence,Administration
HM Land Registry,HM Land Registry,05/04/2017,Travel & Subsistence General Duty,Product Development & Management,Redfern Travel Ltd,SME,1178098,"1,368.57",Travel & Subsistence,Administration
HM Land Registry,HM Land Registry,05/04/2017,Travel & Subsistence Overseas Travel,Product Development & Management,Redfern Travel Ltd,SME,1178098,169.00,Travel & Subsistence,Administration
HM Land Registry,HM Land Registry,05/04/2017,Travel & Subsistence General Duty,Program: Local Land Charges,Redfern Travel Ltd,SME,1178098,"1,264.47",Travel & Subsistence,Administration
HM Land Registry,HM Land Registry,05/04/2017,Travel & Subsistence General Duty,Projects and Programme Centre,Redfern Travel Ltd,SME,1178098,94.10,Travel & Subsistence,Administration
HM Land Registry,HM Land Registry,05/04/2017,Travel & Subsistence General Duty,Property Asset Management Group,Redfern Travel Ltd,SME,1178098,460.10,Travel & Subsistence,Administration
HM Land Registry,HM Land Registry,05/04/2017,Travel & Subsistence General Duty,Research & Data Mining,Redfern Travel Ltd,SME,1178098,977.70,Travel & Subsistence,Administration
HM Land Registry,HM Land Registry,05/04/2017,Travel & Subsistence General Duty,Strategy Team,Redfern Travel Ltd,SME,1178098,315.90,Travel & Subsistence,Administration
HM Land Registry,HM Land Registry,05/04/2017,Travel & Subsistence General Duty,Wales Office,Redfern Travel Ltd,SME,1178098,301.59,Travel & Subsistence,Administration
HM Land Registry,HM Land Registry,05/04/2017,Travel & Subsistence General Duty,Weymouth Office,Redfern Travel Ltd,SME,1178098,28.50,Travel & Subsistence,Administration
HM Land Registry,HM Land Registry,05/04/2017,Travel & Subsistence General Duty,Dir: Finance,Redfern Travel Ltd,SME,1178098,927.90,Travel & Subsistence,Administration
HM Land Registry,HM Land Registry,05/04/2017,Travel & Subsistence General Duty,International Relations,Redfern Travel Ltd,SME,1178098,318.20,Travel & Subsistence,Administration
HM Land Registry,HM Land Registry,05/04/2017,Travel & Subsistence Overseas Travel,International Relations,Redfern Travel Ltd,SME,1178098,198.54,Travel & Subsistence,Administration
HM Land Registry,HM Land Registry,05/04/2017,Travel & Subsistence General Duty,International Business Development,Redfern Travel Ltd,SME,1178098,405.50,Travel & Subsistence,Administration
HM Land Registry,HM Land Registry,05/04/2017,Travel & Subsistence General Duty,Communications Team,Redfern Travel Ltd,SME,1178098,161.65,Travel & Subsistence,Administration
HM Land Registry,HM Land Registry,05/04/2017,Travel & Subsistence General Duty,Internal Audit,Redfern Travel Ltd,SME,1178098,360.09,Travel & Subsistence,Administration
HM Land Registry,HM Land Registry,05/04/2017,Travel & Subsistence General Duty,Operations Assurance and Risk,Redfern Travel Ltd,SME,1178098,213.00,Travel & Subsistence,Administration
HM Land Registry,HM Land Registry,05/04/2017,Travel & Subsistence General Duty,Local Lawyer Support Group,Redfern Travel Ltd,SME,1178098,67.54,Travel & Subsistence,Administration
HM Land Registry,HM Land Registry,05/04/2017,Travel & Subsistence General Duty,Business Continuity,Redfern Travel Ltd,SME,1178098,267.40,Travel & Subsistence,Administration
HM Land Registry,HM Land Registry,05/04/2017,Travel & Subsistence General Duty,Dir: Strategy,Redfern Travel Ltd,SME,1178098,285.50,Travel & Subsistence,Administration
HM Land Registry,HM Land Registry,11/04/2017,Travel & Subsistence General Duty,Birkenhead Office,Redfern Travel Ltd,SME,1178808,349.10,Travel & Subsistence,Administration
HM Land Registry,HM Land Registry,11/04/2017,Travel & Subsistence General Duty,Business Development,Redfern Travel Ltd,SME,1178808,305.00,Travel & Subsistence,Administration
HM Land Registry,HM Land Registry,11/04/2017,Travel & Subsistence General Duty,Central Facilities Management Team,Redfern Travel Ltd,SME,1178808,"1,042.06",Travel & Subsistence,Administration
HM Land Registry,HM Land Registry,11/04/2017,Travel & Subsistence General Duty,Central Operations Group,Redfern Travel Ltd,SME,1178808,"1,729.09",Travel & Subsistence,Administration
HM Land Registry,HM Land Registry,11/04/2017,Travel & Subsistence General Duty,Central RFS,Redfern Travel Ltd,SME,1178808,83.00,Travel & Subsistence,Administration
HM Land Registry,HM Land Registry,11/04/2017,Travel & Subsistence General Duty,Chief Executives Office,Redfern Travel Ltd,SME,1178808,592.02,Travel & Subsistence,Administration
HM Land Registry,HM Land Registry,11/04/2017,Travel & Subsistence General Duty,Commercial Director,Redfern Travel Ltd,SME,1178808,104.46,Travel & Subsistence,Administration
HM Land Registry,HM Land Registry,11/04/2017,Travel & Subsistence General Duty,Corp Procurement,Redfern Travel Ltd,SME,1178808,613.60,Travel & Subsistence,Administration
HM Land Registry,HM Land Registry,11/04/2017,Travel & Subsistence General Duty,Corporate Legal Services,Redfern Travel Ltd,SME,1178808,430.95,Travel & Subsistence,Administration
HM Land Registry,HM Land Registry,11/04/2017,Travel & Subsistence Dual Workplace,Corporate Legal Services,Redfern Travel Ltd,SME,1178808,31.60,Travel & Subsistence,Administration
HM Land Registry,HM Land Registry,11/04/2017,Travel & Subsistence General Duty,Coventry Office,Redfern Travel Ltd,SME,1178808,18.50,Travel & Subsistence,Administration
HM Land Registry,HM Land Registry,11/04/2017,Travel & Subsistence General Duty,Croydon Office,Redfern Travel Ltd,SME,1178808,145.51,Travel & Subsistence,Administration
HM Land Registry,HM Land Registry,11/04/2017,Travel & Subsistence General Duty,Data Group,Redfern Travel Ltd,SME,1178808,532.00,Travel & Subsistence,Administration
HM Land Registry,HM Land Registry,11/04/2017,Travel & Subsistence General Duty,Dir: (Statutory) Digital Services,Redfern Travel Ltd,SME,1178808,788.86,Travel & Subsistence,Administration
HM Land Registry,HM Land Registry,11/04/2017,Travel & Subsistence General Duty,Dir: Operations,Redfern Travel Ltd,SME,1178808,383.60,Travel & Subsistence,Administration
HM Land Registry,HM Land Registry,11/04/2017,Travel & Subsistence General Duty,Director of Information Systems,Redfern Travel Ltd,SME,1178808,"1,411.33",Travel & Subsistence,Administration
HM Land Registry,HM Land Registry,11/04/2017,Travel & Subsistence General Duty,Director of Legal Services,Redfern Travel Ltd,SME,1178808,98.10,Travel & Subsistence,Administration
HM Land Registry,HM Land Registry,11/04/2017,Travel & Subsistence General Duty,Director of Operations,Redfern Travel Ltd,SME,1178808,87.40,Travel & Subsistence,Administration
HM Land Registry,HM Land Registry,11/04/2017,Travel & Subsistence General Duty,Durham Office,Redfern Travel Ltd,SME,1178808,413.83,Travel & Subsistence,Administration
HM Land Registry,HM Land Registry,11/04/2017,Travel & Subsistence General Duty,Finance Director,Redfern Travel Ltd,SME,1178808,204.10,Travel & Subsistence,Administration
HM Land Registry,HM Land Registry,11/04/2017,Travel & Subsistence General Duty,Finance Group,Redfern Travel Ltd,SME,1178808,80.60,Travel & Subsistence,Administration
HM Land Registry,HM Land Registry,11/04/2017,Travel & Subsistence General Duty,Guarantee & Litigation,Redfern Travel Ltd,SME,1178808,222.00,Travel & Subsistence,Administration
HM Land Registry,HM Land Registry,11/04/2017,Travel & Subsistence General Duty,HR Group,Redfern Travel Ltd,SME,1178808,"3,219.29",Travel & Subsistence,Administration
HM Land Registry,HM Land Registry,11/04/2017,Travel & Subsistence General Duty,Hull Office,Redfern Travel Ltd,SME,1178808,183.40,Travel & Subsistence,Administration
HM Land Registry,HM Land Registry,11/04/2017,Travel & Subsistence General Duty,IS Service Delivery,Redfern Travel Ltd,SME,1178808,296.90,Travel & Subsistence,Administration
HM Land Registry,HM Land Registry,11/04/2017,Travel & Subsistence General Duty,Local Land Charges,Redfern Travel Ltd,SME,1178808,"3,765.06",Travel & Subsistence,Administration
HM Land Registry,HM Land Registry,11/04/2017,Travel & Subsistence Overseas Travel,Local Land Charges,Redfern Travel Ltd,SME,1178808,73.60,Travel & Subsistence,Administration
HM Land Registry,HM Land Registry,11/04/2017,Travel & Subsistence Dual Workplace,Local Land Charges,Redfern Travel Ltd,SME,1178808,281.20,Travel & Subsistence,Administration
HM Land Registry,HM Land Registry,11/04/2017,Travel & Subsistence General Duty,Local Lawyer Group,Redfern Travel Ltd,SME,1178808,666.62,Travel & Subsistence,Administration
HM Land Registry,HM Land Registry,11/04/2017,Travel & Subsistence General Duty,Nottingham Office,Redfern Travel Ltd,SME,1178808,664.00,Travel & Subsistence,Administration
HM Land Registry,HM Land Registry,11/04/2017,Travel & Subsistence General Duty,Peterborough Office,Redfern Travel Ltd,SME,1178808,88.33,Travel & Subsistence,Administration
HM Land Registry,HM Land Registry,11/04/2017,Travel & Subsistence General Duty,Product Development & Management,Redfern Travel Ltd,SME,1178808,"1,128.10",Travel & Subsistence,Administration
HM Land Registry,HM Land Registry,11/04/2017,Travel & Subsistence General Duty,Program: Local Land Charges,Redfern Travel Ltd,SME,1178808,520.27,Travel & Subsistence,Administration
HM Land Registry,HM Land Registry,11/04/2017,Travel & Subsistence General Duty,Projects and Programme Centre,Redfern Travel Ltd,SME,1178808,456.70,Travel & Subsistence,Administration
HM Land Registry,HM Land Registry,11/04/2017,Travel & Subsistence General Duty,Property Asset Management Group,Redfern Travel Ltd,SME,1178808,326.50,Travel & Subsistence,Administration
HM Land Registry,HM Land Registry,11/04/2017,Travel & Subsistence General Duty,Strategy Team,Redfern Travel Ltd,SME,1178808,114.65,Travel & Subsistence,Administration
HM Land Registry,HM Land Registry,11/04/2017,Travel & Subsistence General Duty,Telford Office,Redfern Travel Ltd,SME,1178808,18.10,Travel & Subsistence,Administration
HM Land Registry,HM Land Registry,11/04/2017,Travel & Subsistence General Duty,Wales Office,Redfern Travel Ltd,SME,1178808,95.25,Travel & Subsistence,Administration
HM Land Registry,HM Land Registry,11/04/2017,Travel & Subsistence General Duty,Weymouth Office,Redfern Travel Ltd,SME,1178808,159.93,Travel & Subsistence,Administration
HM Land Registry,HM Land Registry,11/04/2017,Travel & Subsistence General Duty,Dir: Finance,Redfern Travel Ltd,SME,1178808,665.50,Travel & Subsistence,Administration
HM Land Registry,HM Land Registry,11/04/2017,Travel & Subsistence General Duty,HR Operations,Redfern Travel Ltd,SME,1178808,651.20,Travel & Subsistence,Administration
HM Land Registry,HM Land Registry,11/04/2017,Travel & Subsistence General Duty,Independent Complaints Reviewer,Redfern Travel Ltd,SME,1178808,65.50,Travel & Subsistence,Administration
HM Land Registry,HM Land Registry,11/04/2017,Travel & Subsistence Overseas Travel,Independent Complaints Reviewer,Redfern Travel Ltd,SME,1178808,39.98,Travel & Subsistence,Administration
HM Land Registry,HM Land Registry,11/04/2017,Travel & Subsistence General Duty,Registration Legal Services Group,Redfern Travel Ltd,SME,1178808,122.00,Travel & Subsistence,Administration
HM Land Registry,HM Land Registry,11/04/2017,Travel & Subsistence General Duty,Dir: Information Systems,Redfern Travel Ltd,SME,1178808,172.33,Travel & Subsistence,Administration
HM Land Registry,HM Land Registry,11/04/2017,Travel & Subsistence Overseas Travel,International Relations,Redfern Travel Ltd,SME,1178808,961.44,Travel & Subsistence,Administration
HM Land Registry,HM Land Registry,11/04/2017,Travel & Subsistence General Duty,International Business Development,Redfern Travel Ltd,SME,1178808,421.00,Travel & Subsistence,Administration
HM Land Registry,HM Land Registry,11/04/2017,Travel & Subsistence General Duty,Communications Team,Redfern Travel Ltd,SME,1178808,153.10,Travel & Subsistence,Administration
HM Land Registry,HM Land Registry,11/04/2017,Travel & Subsistence General Duty,Internal Audit,Redfern Travel Ltd,SME,1178808,176.17,Travel & Subsistence,Administration
HM Land Registry,HM Land Registry,11/04/2017,Travel & Subsistence General Duty,Operations Assurance and Risk,Redfern Travel Ltd,SME,1178808,72.60,Travel & Subsistence,Administration
HM Land Registry,HM Land Registry,11/04/2017,Travel & Subsistence General Duty,Dir: Strategy,Redfern Travel Ltd,SME,1178808,251.80,Travel & Subsistence,Administration
HM Land Registry,HM Land Registry,11/04/2017,Travel & Subsistence General Duty,Diversity,Redfern Travel Ltd,SME,1178808,-69.50,Travel & Subsistence,Administration
HM Land Registry,HM Land Registry,26/04/2017,Travel & Subsistence General Duty,Birkenhead Office,Redfern Travel Ltd,SME,1179892,164.10,Travel & Subsistence,Administration
HM Land Registry,HM Land Registry,26/04/2017,Travel & Subsistence General Duty,Business Development,Redfern Travel Ltd,SME,1179892,682.00,Travel & Subsistence,Administration
HM Land Registry,HM Land Registry,26/04/2017,Travel & Subsistence General Duty,Central Facilities Management Team,Redfern Travel Ltd,SME,1179892,"1,545.80",Travel & Subsistence,Administration
HM Land Registry,HM Land Registry,26/04/2017,Travel & Subsistence Dual Workplace,Central Facilities Management Team,Redfern Travel Ltd,SME,1179892,182.40,Travel & Subsistence,Administration
HM Land Registry,HM Land Registry,26/04/2017,Travel & Subsistence General Duty,Central Operations Group,Redfern Travel Ltd,SME,1179892,"1,275.98",Travel & Subsistence,Administration
HM Land Registry,HM Land Registry,26/04/2017,Travel & Subsistence General Duty,Chief Executives Office,Redfern Travel Ltd,SME,1179892,487.10,Travel & Subsistence,Administration
HM Land Registry,HM Land Registry,26/04/2017,Travel & Subsistence General Duty,Commercial & Customer Strategy & Performance,Redfern Travel Ltd,SME,1179892,-317.00,Travel & Subsistence,Administration
HM Land Registry,HM Land Registry,26/04/2017,Travel & Subsistence General Duty,Commercial Director,Redfern Travel Ltd,SME,1179892,189.50,Travel & Subsistence,Administration
HM Land Registry,HM Land Registry,26/04/2017,Travel & Subsistence General Duty,Corp Procurement,Redfern Travel Ltd,SME,1179892,-71.27,Travel & Subsistence,Administration
HM Land Registry,HM Land Registry,26/04/2017,Travel & Subsistence General Duty,Corporate Assurance,Redfern Travel Ltd,SME,1179892,404.37,Travel & Subsistence,Administration
HM Land Registry,HM Land Registry,26/04/2017,Travel & Subsistence General Duty,Corporate Legal Services,Redfern Travel Ltd,SME,1179892,493.00,Travel & Subsistence,Administration
HM Land Registry,HM Land Registry,26/04/2017,Travel & Subsistence Dual Workplace,Corporate Legal Services,Redfern Travel Ltd,SME,1179892,18.50,Travel & Subsistence,Administration
HM Land Registry,HM Land Registry,26/04/2017,Travel & Subsistence General Duty,Data Group,Redfern Travel Ltd,SME,1179892,876.78,Travel & Subsistence,Administration
HM Land Registry,HM Land Registry,26/04/2017,Travel & Subsistence General Duty,Dir: (Statutory) Digital Services,Redfern Travel Ltd,SME,1179892,711.20,Travel & Subsistence,Administration
HM Land Registry,HM Land Registry,26/04/2017,Travel & Subsistence General Duty,Dir: Operations,Redfern Travel Ltd,SME,1179892,688.30,Travel & Subsistence,Administration
HM Land Registry,HM Land Registry,26/04/2017,Travel & Subsistence General Duty,Director of Information Systems,Redfern Travel Ltd,SME,1179892,"2,850.82",Travel & Subsistence,Administration
HM Land Registry,HM Land Registry,26/04/2017,Travel & Subsistence Overseas Travel,Director of Information Systems,Redfern Travel Ltd,SME,1179892,431.85,Travel & Subsistence,Administration
HM Land Registry,HM Land Registry,26/04/2017,Travel & Subsistence General Duty,Director of Legal Services,Redfern Travel Ltd,SME,1179892,-36.50,Travel & Subsistence,Administration
HM Land Registry,HM Land Registry,26/04/2017,Travel & Subsistence General Duty,Director of Operations,Redfern Travel Ltd,SME,1179892,"1,609.20",Travel & Subsistence,Administration
HM Land Registry,HM Land Registry,26/04/2017,Travel & Subsistence General Duty,Durham Office,Redfern Travel Ltd,SME,1179892,223.16,Travel & Subsistence,Administration
HM Land Registry,HM Land Registry,26/04/2017,Travel & Subsistence General Duty,Finance Director,Redfern Travel Ltd,SME,1179892,124.23,Travel & Subsistence,Administration
HM Land Registry,HM Land Registry,26/04/2017,Travel & Subsistence General Duty,Finance Group,Redfern Travel Ltd,SME,1179892,84.50,Travel & Subsistence,Administration
HM Land Registry,HM Land Registry,26/04/2017,Travel & Subsistence General Duty,Fylde Office,Redfern Travel Ltd,SME,1179892,-95.80,Travel & Subsistence,Administration
HM Land Registry,HM Land Registry,26/04/2017,Travel & Subsistence General Duty,Gloucester Office,Redfern Travel Ltd,SME,1179892,89.30,Travel & Subsistence,Administration
HM Land Registry,HM Land Registry,26/04/2017,Travel & Subsistence General Duty,Guarantee & Litigation,Redfern Travel Ltd,SME,1179892,190.60,Travel & Subsistence,Administration
HM Land Registry,HM Land Registry,26/04/2017,Travel & Subsistence General Duty,HR Group,Redfern Travel Ltd,SME,1179892,"2,367.76",Travel & Subsistence,Administration
HM Land Registry,HM Land Registry,26/04/2017,Travel & Subsistence General Duty,IS Service Delivery,Redfern Travel Ltd,SME,1179892,283.53,Travel & Subsistence,Administration
HM Land Registry,HM Land Registry,26/04/2017,Travel & Subsistence General Duty,Leicester Office,Redfern Travel Ltd,SME,1179892,15.00,Travel & Subsistence,Administration
HM Land Registry,HM Land Registry,26/04/2017,Travel & Subsistence General Duty,Local Land Charges,Redfern Travel Ltd,SME,1179892,"3,455.34",Travel & Subsistence,Administration
HM Land Registry,HM Land Registry,26/04/2017,Travel & Subsistence General Duty,Local Lawyer Group,Redfern Travel Ltd,SME,1179892,627.00,Travel & Subsistence,Administration
HM Land Registry,HM Land Registry,26/04/2017,Travel & Subsistence General Duty,Marketing Services Team,Redfern Travel Ltd,SME,1179892,-0.80,Travel & Subsistence,Administration
HM Land Registry,HM Land Registry,26/04/2017,Travel & Subsistence General Duty,Plymouth Office,Redfern Travel Ltd,SME,1179892,256.40,Travel & Subsistence,Administration
HM Land Registry,HM Land Registry,26/04/2017,Travel & Subsistence General Duty,Product Development & Management,Redfern Travel Ltd,SME,1179892,899.50,Travel & Subsistence,Administration
HM Land Registry,HM Land Registry,26/04/2017,Travel & Subsistence General Duty,Program: Local Land Charges,Redfern Travel Ltd,SME,1179892,609.16,Travel & Subsistence,Administration
HM Land Registry,HM Land Registry,26/04/2017,Travel & Subsistence General Duty,Projects and Programme Centre,Redfern Travel Ltd,SME,1179892,691.53,Travel & Subsistence,Administration
HM Land Registry,HM Land Registry,26/04/2017,Travel & Subsistence General Duty,Property Asset Management Group,Redfern Travel Ltd,SME,1179892,487.60,Travel & Subsistence,Administration
HM Land Registry,HM Land Registry,26/04/2017,Travel & Subsistence General Duty,Research & Data Mining,Redfern Travel Ltd,SME,1179892,-171.00,Travel & Subsistence,Administration
HM Land Registry,HM Land Registry,26/04/2017,Travel & Subsistence General Duty,Strategy Team,Redfern Travel Ltd,SME,1179892,324.70,Travel & Subsistence,Administration
HM Land Registry,HM Land Registry,26/04/2017,Travel & Subsistence General Duty,Telford Office,Redfern Travel Ltd,SME,1179892,149.48,Travel & Subsistence,Administration
HM Land Registry,HM Land Registry,26/04/2017,Travel & Subsistence General Duty,Weymouth Office,Redfern Travel Ltd,SME,1179892,185.05,Travel & Subsistence,Administration
HM Land Registry,HM Land Registry,26/04/2017,Travel & Subsistence General Duty,Dir: Finance,Redfern Travel Ltd,SME,1179892,"2,615.23",Travel & Subsistence,Administration
HM Land Registry,HM Land Registry,26/04/2017,Travel & Subsistence General Duty,HR Operations,Redfern Travel Ltd,SME,1179892,84.00,Travel & Subsistence,Administration
HM Land Registry,HM Land Registry,26/04/2017,Travel & Subsistence General Duty,Dir: Information Systems,Redfern Travel Ltd,SME,1179892,275.60,Travel & Subsistence,Administration
HM Land Registry,HM Land Registry,26/04/2017,Travel & Subsistence General Duty,International Relations,Redfern Travel Ltd,SME,1179892,58.50,Travel & Subsistence,Administration
HM Land Registry,HM Land Registry,26/04/2017,Travel & Subsistence Overseas Travel,International Relations,Redfern Travel Ltd,SME,1179892,166.43,Travel & Subsistence,Administration
HM Land Registry,HM Land Registry,26/04/2017,Travel & Subsistence General Duty,International Business Development,Redfern Travel Ltd,SME,1179892,180.60,Travel & Subsistence,Administration
HM Land Registry,HM Land Registry,26/04/2017,Travel & Subsistence General Duty,Communications Team,Redfern Travel Ltd,SME,1179892,227.10,Travel & Subsistence,Administration
HM Land Registry,HM Land Registry,26/04/2017,Travel & Subsistence General Duty,Internal Audit,Redfern Travel Ltd,SME,1179892,-183.50,Travel & Subsistence,Administration
HM Land Registry,HM Land Registry,26/04/2017,Travel & Subsistence General Duty,Dir: Strategy,Redfern Travel Ltd,SME,1179892,-7.60,Travel & Subsistence,Administration
HM Land Registry,HM Land Registry,26/04/2017,Travel & Subsistence General Duty,Diversity,Redfern Travel Ltd,SME,1179892,188.90,Travel & Subsistence,Administration
HM Land Registry,HM Land Registry,11/04/2017,Letter Post,Birkenhead Office,Royal Mail,Large,1178720,"2,396.25",Letter Post,Administration
HM Land Registry,HM Land Registry,11/04/2017,Letter Post,Coventry Office,Royal Mail,Large,1178720,"1,756.29",Letter Post,Administration
HM Land Registry,HM Land Registry,11/04/2017,Letter Post,Croydon Office,Royal Mail,Large,1178720,"4,978.92",Letter Post,Administration
HM Land Registry,HM Land Registry,11/04/2017,Letter Post,Durham Office,Royal Mail,Large,1178720,"6,147.36",Letter Post,Administration
HM Land Registry,HM Land Registry,11/04/2017,Letter Post,Fylde Office,Royal Mail,Large,1178720,"3,391.13",Letter Post,Administration
HM Land Registry,HM Land Registry,11/04/2017,Letter Post,Gloucester Office,Royal Mail,Large,1178720,"1,843.82",Letter Post,Administration
HM Land Registry,HM Land Registry,11/04/2017,Letter Post,Hull Office,Royal Mail,Large,1178720,"3,400.16",Letter Post,Administration
HM Land Registry,HM Land Registry,11/04/2017,Letter Post,IS Service Delivery,Royal Mail,Large,1178720,"23,428.48",Letter Post,Administration
HM Land Registry,HM Land Registry,11/04/2017,Letter Post,Land Charges,Royal Mail,Large,1178720,900.00,Letter Post,Administration
HM Land Registry,HM Land Registry,11/04/2017,Letter Post,Leicester Office,Royal Mail,Large,1178720,"1,652.35",Letter Post,Administration
HM Land Registry,HM Land Registry,11/04/2017,Letter Post,Nottingham Office,Royal Mail,Large,1178720,"2,714.32",Letter Post,Administration
HM Land Registry,HM Land Registry,11/04/2017,Letter Post,Peterborough Office,Royal Mail,Large,1178720,"2,297.09",Letter Post,Administration
HM Land Registry,HM Land Registry,11/04/2017,Letter Post,Plymouth Office,Royal Mail,Large,1178720,"6,582.03",Letter Post,Administration
HM Land Registry,HM Land Registry,11/04/2017,Letter Post,Telford Office,Royal Mail,Large,1178720,"1,149.54",Letter Post,Administration
HM Land Registry,HM Land Registry,11/04/2017,Letter Post,Wales Office,Royal Mail,Large,1178720,"19,860.52",Letter Post,Administration
HM Land Registry,HM Land Registry,11/04/2017,Letter Post,Weymouth Office,Royal Mail,Large,1178720,"1,722.29",Letter Post,Administration
HM Land Registry,HM Land Registry,28/04/2017,Computer Equipment Maintenance,IS Service Delivery,Software Box Ltd,SME,1180004,"42,876.62",Computer Equipment Maintenance,Administration
HM Land Registry,HM Land Registry,26/04/2017,Rates Payable,Director of Information Systems,South Hams District Council,Large,1175825,"7,837.00",Rates Payable,Administration
HM Land Registry,HM Land Registry,26/04/2017,Rates Payable,Director of Information Systems,South Hams District Council,Large,1175824,"4,503.00",Rates Payable,Administration
HM Land Registry,HM Land Registry,05/04/2017,Fixed Asset Interface Account,Balance Sheet,Specialist Computer Centres Plc - SCC,Large,1177840,"42,500.50",Fixed Assets,Administration
HM Land Registry,HM Land Registry,05/04/2017,Computer Equipment Maintenance,IS Service Delivery,Specialist Computer Centres Plc - SCC,Large,1177840,"9,573.87",Computer Equipment Maintenance,Administration
HM Land Registry,HM Land Registry,11/04/2017,Computer Equipment Maintenance,IS Service Delivery,Specialist Computer Centres Plc - SCC,Large,1178538,"80,636.16",Computer Equipment Maintenance,Administration
HM Land Registry,HM Land Registry,12/04/2017,Computer Equipment Maintenance,IS Service Delivery,Specialist Computer Centres Plc - SCC,Large,1178089,"2,353,586.00",Computer Equipment Maintenance,Administration
HM Land Registry,HM Land Registry,26/04/2017,Rates Payable,Telford Office,Telford & Wrekin Council,Large,1176072,"26,106.00",Rates Payable,Administration
HM Land Registry,HM Land Registry,26/04/2017,Rates Payable,Gloucester Computer Centre,Tewkesbury Borough Council,Large,1174831,"11,615.00",Rates Payable,Administration
HM Land Registry,HM Land Registry,19/04/2017,RFS Outsourced Services,Central RFS,TNT (UK) Ltd,Large,1179113,"110,825.39",Regional File Store Outsourced Services,Administration
HM Land Registry,HM Land Registry,07/04/2017,Data Network Lines,IS Service Delivery,Vodafone Corporate Ltd,Large,1178312,"61,665.13",Data Network Lines,Administration
HM Land Registry,HM Land Registry,05/04/2017,Rates Payable,Weymouth Office,West Dorset District Council,Large,1176979,"4,931.00",Rates Payable,Administration
HM Land Registry,HM Land Registry,05/04/2017,Rates Payable,Weymouth Office,West Dorset District Council,Large,1176980,"5,222.00",Rates Payable,Administration
HM Land Registry,HM Land Registry,07/04/2017,Rates Payable,Birkenhead Office,Wirral Council,Large,1176876,"27,482.10",Rates Payable,Administration
HM Land Registry,HM Land Registry,06/04/2017,Maps & Plans Data Migration,Forward Scanning,Xerox (UK) Ltd,Large,1178304,"115,386.10",Maps & Plans Data Migration,Administration
